Cogmind - Beta 10.2 @@@ ROGUE MODE // 2021.06.21 @ 01:07:23 Player: Pitt Result: Destroyed by Y-45 Defender with Beam Rifle Performance ------------- Evolutions (1) 500 Regions Visited (2) 400 Robots Destroyed (37) 185 Value Destroyed (757) 757 Prototype IDs (1) 20 Alien Tech Used (0) 0 Bonus (0) 0 TOTAL SCORE: 1862 Bonus ------- None Cogmind --------- Core Integrity 0/400 Matter 246/300 Energy 280/280 System Corruption 0% Temperature Cool (9) Movement Rolling (100) Ox2 Location -9/Materials Parts ------- > --- POWER (1) -------- Heavy Ion Engine > --- PROPULSION (2) --- Wheel Wheel > --- UTILITY (4) ------ Heat Sink High-capacity Storage Unit Seismic Analyzer Targeting Computer > --- WEAPON (2) ------- Heavy EM Pulse Gun Improved Light Cannon > --- INVENTORY (12) --- Light Ion Engine Light Treads Flight Unit Heat Sink Visual Processing Unit Small Laser Light Assault Rifle Datajack Mining Laser Peak State ------------ > --- POWER ------------ Heavy Ion Engine > --- PROPULSION ------- Aluminum Leg Aluminum Leg > --- UTILITY ---------- Medium Storage Unit Improved Terrain Scanner Seismic Analyzer Targeting Computer > --- WEAPON ----------- EM Shotgun Particle Gun > --- INVENTORY -------- Light Ion Engine Improved Ion Engine Light Treads Heat Sink Visual Processing Unit Small Laser Mining Laser [Rating: 14] Favorites ----------- Power Light Ion Engine Engine Light Ion Engine Propulsion Aluminum Leg Leg Aluminum Leg Wheel Wheel Flight Unit Flight Unit Utility Targeting Computer Device Improved Terrain Scanner Storage Medium Storage Unit Processor Targeting Computer Weapon Medium Laser Energy Gun Medium Laser Energy Cannon Beam Cannon Ballistic Gun Light Assault Rifle Ballistic Cannon Improved Light Cannon Special Weapon Mining Laser Special Melee Weapon Datajack Build | -11 -10 -9 ------- Run | Scr Mat Mat Slots Evolved 2 | . . 2 Power . | . . . Propulsion . | . . . Utility 2 | . . 2 Weapon . | . . . Parts Attached 50 | 7 17 26 Power 7 | 1 2 4 Engine 7 | 1 2 4 Core . | . . . Reactor . | . . . Propulsion 8 | 2 2 4 Treads . | . . . Leg 5 | 2 2 1 Wheel 2 | . . 2 Hover . | . . . Flight 1 | . . 1 Utility 9 | 2 3 4 Device 3 | 1 . 2 Storage 4 | 1 2 1 Processor 2 | . 1 1 Hackware . | . . . Protection . | . . . Artifact . | . . . Weapon 26 | 2 10 14 Energy Gun 16 | 2 5 9 Energy Cannon 1 | . 1 . Ballistic Gun 2 | . . 2 Ballistic Cannon 1 | . . 1 Launcher . | . . . Special Weapon 5 | . 4 1 Impact Weapon . | . . . Slashing Weapon . | . . . Piercing Weapon . | . . . Special Melee Weapon 1 | . . 1 Unidentified Prototypes 1 | . . 1 Parts Lost 16 | . 4 12 Power 2 | . 1 1 Propulsion 4 | . 1 3 Utility 1 | . . 1 Weapon 9 | . 2 7 Highest Loss Streak 6 | . 3 6 Average Slot Usage (%) 96 | . 97 95 Engine 12 | . 13 10 Leg 21 | . 27 16 Wheel 1 | . . 2 Device 5 | . . 10 Storage 12 | . 14 11 Processor 18 | . 13 22 Energy Gun 16 | . 16 16 Energy Cannon 2 | . 5 . Ballistic Gun 1 | . . 1 Special Weapon 2 | . 4 . Naked Turns . | . . . Heaviest Build 48 | 12 17 48 Greatest Support 20 | 20 20 20 Greatest Overweight (x) 4 | . 1 4 Average Overweight (x) . | . . 1 Largest Inventory Capacity 12 | 6 8 12 Average Capacity 7 | 5 7 8 Most Carried 9 | 6 8 9 Average Carried 6 | 3 7 6 Final Capacity 12 | 6 8 12 Final Carried 9 | 6 8 9 Class Distribution -------------------- 52% | Scavenger-Mutant 47% | Mutant Dominant Class ---------------- Mutant | -10/Materials Scavenger-Mutant | -9/Materials Resources | -11 -10 -9 ----------- Run | Scr Mat Mat Matter Collected 689 | 270 241 178 Remotely . | . . . Salvage Created 1354 | 93 631 630 Parts 75 | 9 30 36 Haulers Intercepted 2 | . 1 1 Recyclers Shooed 5 | . 2 3 Parts Field Recycled . | . . . Retrieved Matter . | . . . Parts Self-Destructed . | . . . Prevented . | . . . Kills | -11 -10 -9 ------- Run | Scr Mat Mat Combat Hostiles Destroyed 19 | . 7 12 Guns 15 | . 3 12 Cannons 4 | . 4 . Classes Destroyed 10 | 1 7 2 Worker 2 | . 1 1 Builder 2 | . 1 1 Tunneler 6 | 5 1 . Hauler 2 | . 1 1 Recycler 3 | . 2 1 Operator 1 | . 1 . Watcher 2 | . 2 . Swarmer 3 | . . 3 Grunt 13 | . 7 6 Sentry 3 | . . 3 Best Kill Streak 6 | 2 6 6 Combat Bots Only 4 | . 4 4 Max Kills in Single Turn 2 | 1 1 2 Gunslinging . | . . . Exploded . | . . . Melee . | . . . Uniques/NPCs Destroyed . | . . . Combat | -11 -10 -9 -------- Run | Scr Mat Mat Damage Taken 1823 | . 514 1309 Core 492 | . 86 406 Absorbed by Shields . | . . . Core Remaining (%) 82 | 100 65 . Volleys Fired 143 | 14 71 58 Largest 2 | 2 2 2 Hottest 110 | 100 110 110 Shots Fired 199 | 28 91 80 Gun 151 | 28 47 76 Cannon 29 | . 26 3 Launcher . | . . . Special 19 | . 18 1 Kinetic 26 | . . 26 Thermal 164 | 28 91 45 Explosive . | . . . Electromagnetic 9 | . . 9 Robot Hit Streak 19 | 6 10 19 Robot Miss Streak 4 | 2 3 4 Penetration Max . | . . . Secondary Targets . | . . . Shots Hit Robots 124 | 15 49 60 Core Hits 60 | 6 22 32 Critical Hits 3 | . 1 2 Critical Kills 2 | . 1 1 Critical Parts Destroyed 1 | . . 1 Melee Attacks 2 | . . 2 Impact . | . . . Slashing . | . . . Piercing . | . . . Sneak Attacks 2 | . . 2 Combat Hostiles . | . . . Follow-up Attacks . | . . . Damage Inflicted 1619 | 198 722 699 Guns 1224 | 198 390 636 Cannons 380 | . 332 48 Explosions . | . . . Melee . | . . . Ramming 15 | . . 15 Kinetic 183 | . . 183 Thermal 1358 | 198 722 438 Explosive . | . . . Electromagnetic 63 | . . 63 Impact . | . . . Slashing . | . . . Piercing . | . . . Highest Corruption . | . . . Average Corruption . | . . . Corruption Purged . | . . . Overload Shots . | . . . Overflow Damage . | . . . Projectiles . | . . . Explosions . | . . . Melee . | . . . Knockbacks . | . . . Impact . | . . . Kinetic . | . . . Secondary . | . . . Self-Inflicted Damage 7 | . . 7 Shots . | . . . Rammed 3 | . . 3 Targets Rammed 3 | . . 3 Kicked . | . . . Crushed . | . . . Highest Temperature 519 | 216 519 186 Average Temperature 92 | 83 109 58 Received Heat Transfer 837 | . 279 558 Effects 12 | . 12 . Shutdowns 2 | . 2 . Energy Bleed 2 | . 2 . Interference 2 | . 2 . Matter Decay 2 | . 2 . Short Circuit 1 | . 1 . Damage (major) 3 | . 3 . Siege Activations . | . . . Robots Corrupted . | . . . Combat Hostiles . | . . . Parts Fried . | . . . Impact Corruptions . | . . . Robots Melted . | . . . Combat Hostiles . | . . . Parts Melted 7 | 1 6 . Heat Transferred 3521 | 592 1850 1079 Parts Sabotaged . | . . . Parts Stolen . | . . . Parts Stripped . | . . . Power Chain Reactions . | . . . Missiles Intercepted . | . . . Alert | -11 -10 -9 ------- Run | Scr Mat Mat Peak Influence 232 | 25 172 232 Initial 72 | . 16 72 Average 77 | 11 61 106 Maximum Alert Level 1 | . . 1 Low Security (%) 94 | 100 100 87 Level 1 5 | . . 12 Level 2 . | . . . Level 3 . | . . . Level 4 . | . . . Level 5 . | . . . High Security . | . . . Max Security . | . . . Squads Dispatched 4 | . 2 2 Investigation 3 | . 1 2 Extermination . | . . . Reinforcement 1 | . 1 . Assault . | . . . Garrison . | . . . Intercept . | . . . Construction Impeded . | . . . Haulers Reinforced . | . . . Stealth | -11 -10 -9 --------- Run | Scr Mat Mat Distress Signals 1 | . . 1 Communications Jammed . | . . . Distress Signals . | . . . Times Spotted 28 | . 10 18 Peak Tracking Total 5 | . 2 5 Tactical Retreats 1 | . . 1 Traps | -11 -10 -9 ------- Run | Scr Mat Mat Traps Triggered 1 | . 1 . Indirectly . | . . . Trap Hack Attempts 9 | . . 9 Triggered . | . . . Disarmed 1 | . . 1 Reprogrammed . | . . . Reused . | . . . Traps Extracted . | . . . Installed . | . . . Triggered . | . . . Machines | -11 -10 -9 ---------- Run | Scr Mat Mat Machines Disabled . | . . . Max in Single Turn . | . . . Machines Sabotaged . | . . . Garrisons Compromised . | . . . Overloaded Fab Kills . | . . . Fab Network Shutdowns . | . . . Hacking | -11 -10 -9 --------- Run | Scr Mat Mat Machines Accessed 9 | . 3 6 Terminals 7 | . 2 5 Fabricators . | . . . Repair Stations . | . . . Recycling Units 2 | . 1 1 Scanalyzers . | . . . Garrison Access . | . . . Total Hacks 33 | . 11 22 Successful 20 | . 6 14 Failed 13 | . 5 8 Catastrophic . | . . . Database Lockouts . | . . . Manual 20 | . 7 13 Terminals 27 | . 10 17 Fabricators . | . . . Repair Stations . | . . . Recycling Units 6 | . 1 5 Scanalyzers . | . . . Garrison Access . | . . . Terminal Hacks 7 | . 2 5 Terminal Index 2 | . 1 1 Locate Traps 1 | . . 1 Zone Layout 4 | . 1 3 Fabricator Hacks . | . . . Repair Station Hacks . | . . . Recycling Unit Hacks 3 | . 1 2 Report Inventory 2 | . 1 1 Retrieve Components 1 | . . 1 Scanalyzer . | . . . Garrison Access Hacks . | . . . Unauthorized Hacks 10 | . 3 7 Terminals 8 | . 3 5 Assimilate 2 | . . 2 Botnet 4 | . 2 2 Operators 2 | . 1 1 Fabricators . | . . . Repair Stations . | . . . Recycling Units 2 | . . 2 Reject 1 | . . 1 Mask 1 | . . 1 Scanalyzers . | . . . Garrison Access . | . . . Data Cores Recovered . | . . . Used . | . . . Hacking Detections 8 | . 2 6 Full Trace Events 2 | . . 2 Feedback Events . | . . . Feedback Blocked . | . . . Robot Schematics Acquired . | . . . Robots Built . | . . . Matter . | . . . Time . | . . . Total Robot Build Rating . | . . . Part Schematics Acquired . | . . . Parts Built . | . . . Matter . | . . . Time . | . . . Total Part Build Rating . | . . . Parts Repaired . | . . . Time . | . . . Parts Recycled . | . . . Recycled Matter . | . . . Retrieved Matter . | . . . Retrieved Components 9 | . . 9 Parts Scanalyzed . | . . . Part Schematics Acquired . | . . . Parts Damaged . | . . . Bothacking | -11 -10 -9 ------------ Run | Scr Mat Mat Used RIF Installer . | . . . Robots Hacked 2 | . . 2 Non-combat 2 | . . 2 Combat . | . . . Robot Hacks Applied 2 | . . 2 parse_system 1 | . . 1 no_distress 1 | . . 1 Relay Couplers Released . | . . . Robots Rewired . | . . . Allies Hacked . | . . . Hacks Repelled . | . . . Allies | -11 -10 -9 -------- Run | Scr Mat Mat Total Allies 1 | . . 1 Largest Group 1 | . . 1 Highest-Rated Group 10 | . . 10 Highest-Rated Ally 10 | . . 10 Total Orders . | . . . Ally Attacks . | . . . Total Damage . | . . . Kills . | . . . Allies Corrupted . | . . . Allies Melted . | . . . Intel | -11 -10 -9 ------- Run | Scr Mat Mat Robot Analysis Total . | . . . Derelict Logs Recovered . | . . . Drone Launches . | . . . Drone Recoveries . | . . . Exploration | -11 -10 -9 ------------- Run | Scr Mat Mat Turns Passed 1942 | 226 779 937 Spaces Moved 762 | 143 359 260 Core 5 | 5 . . Treads . | . . . Legs 661 | 138 359 164 Wheels 91 | . . 91 Hover . | . . . Flight 5 | . . 5 Fastest Speed 50 | 50 120 80 Average Speed 122 | 117 120 128 Slowest Speed 360 | 120 150 360 Overloaded Moves . | . . . Propulsion Burnouts . | . . . Robots Hopped . | . . . Cave-ins Triggered . | . . . Exploration Rate (%) 22 | 6 34 27 Regions Visited 2 Branch Regions . Pre-discovered Areas . | . . . Known Exits Taken . | . . . Unknown Exits Taken 2 | 1 1 . Scrap Searched . | . . . Spaces Dug 19 | . 18 1 Terrain Destroyed 19 | . 18 1 Melee . | . . . Projectile 19 | . 18 1 AOE . | . . . Terrain Rammed . | . . . Walls Destroyed . | . . . Machines Disabled . | . . . Actions | -11 -10 -9 --------- Run | Scr Mat Mat Total 1523 | 170 576 777 Wait 523 | . 115 408 Move 760 | 142 358 260 Hop . | . . . Pick Up 17 | 7 7 3 Fast Attach 24 | 6 4 14 Attach 8 | 1 2 5 Detach 5 | . 1 4 Swap 18 | . 11 7 Drop 11 | . 7 4 Fire 143 | 14 71 58 Melee 2 | . . 2 Ram . | . . . Kick 3 | . . 3 Crush . | . . . Escape Stasis . | . . . Rewire . | . . . Trap 9 | . . 9 Miscellaneous . | . . . Route ------- -11/Scrapyard -10/Materials -9/Materials History --------- Turn | Location | Event 27 | -11/Scrapyard | Discovered new exit (range 15) 227 | -11/Scrapyard | Entered Materials 323 | -10/Materials | Build established: Mutant 872 | -10/Materials | Lost 3 parts (1p1n1w) 963 | -10/Materials | Discovered new exit (range 11) 1006 | -10/Materials | Entered another Materials area 1006 | -9/Materials | Evolved 2 slots: Utility x2 1218 | -9/Materials | Build established: Scavenger-Mutant 1504 | -9/Materials | Lost 3 parts (1n2w) 1702 | -9/Materials | Core integrity fell below 50% 1706 | -9/Materials | Lost 3 parts (1n2w) 1777 | -9/Materials | Core integrity fell below 20% 1821 | -9/Materials | Lost 6 parts (1p1n1u3w) 1943 | -9/Materials | Destroyed by Y-45 Defender with Beam Rifle Last Messages --------------- 01829_ Acquired Heat Sink. 01832_ Acquired Sml. Laser. 01835_ Acquired Datajack. 01837_ Acquired 38 matter. 01851_ Acquired Hvy. EM Pulse Gun. 01853_ Dropped Med. Storage Unit. 01857_ Acquired Imp. Light Cannon. 01868_ Sneak attack on T-07 Excavator. 01868_ Jacked T-07 Excavator... >>no_distress Distress signal routine blocked. 01874_ Attempting to reprogram Alarm Trap. 01882_ Alarm Trap disarmed. 01913_ Sneak attack on T-07 Excavator. 01913_ Jacked T-07 Excavator... >>parse_system Reading system data... 01926_ K-01 Serf collects debris. 01935_ Y-45 Defender suffers critical hit. 01935_ Destroyed Heat Sink. Map ----- +----------------------------------------------------+ | #?#### "T """###??#####?? ? ?? # ###?????? | | ###### "" """#??#?#?#?###?##??### ####????? | | # #####?# ???####### #???#??? | | # """###??#?? ?? #??#???? | | T + """####??# T ? ?? ##?????? | | # """#?#?### ?? ? #??????? | | # ##??#?# ??? ?#?#??# #??????? | | # ###########?#?###?#??#######?# ##??##?#? | | # # ######?#?###??#"""#?## #?#???#?? | | # + #####?##?######"T"#### #?#??#??# | | # # """ #######?## % % #??#??#?# | | # # """ ########## % %*#?##?#### | | # # """ +^ % """ """!! #??##?##? | | # ################## """ !"Y" ==######??# | | + ########### #?# """ =*%* !##???##??# | | # # # ### =%=* ##????#?#? | | # # # ?## *=* ########?# | | # # """ """ # ?### * # #?? | | # # """ """ # ?+ # #?# | | # + """ """ # ?# # !/ ### | | # # ?? ?? ?? ? ?# + !/ #?? | | # ?? ??? ?? # ?# ##### # #?? | | ???? ? ? # ??#####+###### # #?# | | ???#???#???#????# ## #########?? | | ? ??#?????#??#??#?# "" ## # #?# | | ???#??????????#?#???# ""S@ ## ^^^# """ #?? | | ??????? ????????????# "" ## ^^ + """ #?? | | ????????????????#???# ## # """ #?? | | ????????????????????# !! ## # #?? | | ????????????????????# ! ## #?######??? | | ????????????????????# ####+######?????? | | ????????????????????# # #?????? | | ????????????????????#Y######## #?????? | | ????????????????????##???????# """ #?????? | | ?????????????????????????????# """""#?????? | | ?????????????????????????????# """""#?????? | | ?????????????????????????????# """""#?????? | | ?????????????????????????????# """ #?????? | | ?????????????????????????????# #?????? | | ?????????????????????????????###########?????? | | ?????????????????????????????????????????????? | | ?????????????????????????????????????????????? | | ?????????????????????????????????????????????? | | ?????????????????????????????????????????????? | | ?????????????????????????????????????????????? | | ?????????????????????????????????????????????? | | ?????????????????????????????????????????????? | | ?????????????????????????????????????????????? | | ?????????????????????????????????????????????? | | ?????????????????????????????????????????????? | +----------------------------------------------------+ Best States ------------- Heat Dissipation 38 Energy Generation 14 Energy Capacity 280 Matter Stores 300 Matter Capacity 300 Sight Range 16 Terrain Scan Range 16 Terrain Scan Density 60 Evasion (%) 44 Targeting Accuracy 5 Item Schematics ----------------- None Robot Schematics ------------------ None Fabricated ------------ Nothing Alien Tech Used ----------------- None Achievements -------------- None Challenges ------------ None Game ------ Seed MobileAlertMediator Manual? 0 Play Time 00:21:58 Cumulative 106.2 hours Start 2021.06.21 @ 00:45:27 End 2021.06.21 @ 01:07:23 Sessions 1 Manual Loads 0 Difficulty Rogue Special Mode None Game No. 169 Rogue 169 Adventurer 0 Explorer 0 Win Type - Total 0 Types 0/0/0/0/0/0/0/0/0 Lore% 49 Gallery% 54 Achievement% 35 Wizard Run 0 Options --------- ASCII 1 Keyboard 0 Movement Mouse Keybinds 0 Fullscreen 1 Font 10/Smallcaps Map View 72x50 Tactical HUD 1 Map Filters NONE Filters NONE Steam 1 RUN: 8cfde7c5-9b57-4cfb-a420-b014a6e684be